bitfinex/quotes_ETHUSD_20240811
["timestamp","ask_amount","ask_price","bid_price","bid_amount"]
[1723383880891,2.65838,2633.2,2632.8,0.06538183]
[1723383881055,2.65823,2633.4,2632.8,0.06538183]
[1723383881257,2.65823,2633.4,2632.7,2.4096]
[1723383881498,2.65823,2633.4,2632.9,0.06531938]
[1723383881706,2.65823,2633.4,2632.8,0.06538183]
[1723383882003,2.65823,2633.4,2632.9,0.06531938]
[1723383882502,2.65823,2633.4,2632.7,2.4096]
[1723383882678,2.65823,2633.4,2633.0,0.06525695]
[1723383883001,2.65823,2633.4,2633.1,0.06519452]
[1723383883207,2.65833,2633.3,2633.1,0.06519452]
[1723383883389,2.65833,2633.3,2632.7,2.4096]
[1723383883709,2.65833,2633.3,2633.2,0.06513209]
[1723383883903,3.189986,2633.3,2632.7,2.4096]
[1723383884063,3.189986,2633.3,2633.2,0.06513209]
[1723383884266,3.189986,2633.3,2632.7,2.4096]
[1723383884467,3.189986,2633.3,2633.2,0.06513209]
[1723383884702,3.189986,2633.3,2632.7,2.4096]
[1723383884908,3.189986,2633.3,2633.2,0.06523037]
[1723383885224,5.12187087,2633.3,2633.2,0.06523037]
[1723383885376,3.189986,2633.3,2632.7,2.4096]
[1723383885714,3.189986,2633.3,2632.8,0.0654801]
[1723383886073,3.189986,2633.3,2632.7,2.4096]
[1723383886506,3.189986,2633.3,2632.8,0.0654801]
[1723383886892,3.189986,2633.3,2632.7,2.4096]
[1723383887206,3.189986,2633.3,2632.8,0.0654801]
[1723383887730,3.189986,2633.3,2632.7,2.4096]
[1723383888010,3.189986,2633.3,2632.8,0.0654801]
[1723383888207,0.531656,2633.3,2632.8,0.0654801]
[1723383888407,0.531656,2633.3,2632.7,2.4096]
[1723383888574,2.65824,2633.4,2632.7,2.4096]
[1723383888768,2.65824,2633.4,2632.8,0.0654801]
[1723383888967,2.65836,2633.2,2632.7,2.4096]
[1723383889224,2.65836,2633.2,2632.8,0.0654801]
[1723383889370,2.65826,2633.3,2632.8,0.0654801]
[1723383889712,2.65826,2633.3,2632.7,2.4096]
[1723383889913,2.65824,2633.4,2632.7,5.06846]
[1723383890088,2.65824,2633.4,2632.8,2.7242301]
[1723383890500,7.3,2633.5,2633.0,2.65855]
[1723383890903,7.3,2633.5,2633.1,0.06542836]
[1723383891573,2.65798,2633.6,2633.1,0.06542836]
[1723383891782,1.93170925,2633.5,2633.1,0.06542836]
[1723383894295,2.65798,2633.6,2632.9,2.65861]
[1723383894498,1.9317069,2633.5,2633.2,0.06533204]
[1723383894697,1.9317069,2633.5,2632.9,2.65861]
[1723383894891,2.65806,2633.5,2632.8,3.51393]
[1723383895097,2.65806,2633.5,2633.0,0.0654569]
[1723383895310,2.65806,2633.5,2632.8,3.51393]
[1723383895311,2.65806,2633.5,2632.9,0.06551934]
[1723383895528,2.65806,2633.5,2633.1,0.06539447]
[1723383895681,3.20789,2633.7,2633.0,0.0654569]
[1723383895888,8.9039523,2633.6,2633.2,0.06533204]
[1723383896189,5.90408601,2633.5,2632.8,2.73471199]
[1723383896485,3.0,2633.6,2632.9,5.07313]
[1723383896714,3.0,2633.6,2633.0,2.65855]
[1723383896715,2.65797,2633.6,2633.0,2.65855]
[1723383896991,2.65797,2633.6,2633.1,0.06539447]
[1723383897194,5.65786,2633.7,2633.1,0.06539447]
[1723383897393,1.93168699,2633.6,2633.1,0.06539447]
[1723383898011,2.65826,2633.3,2632.9,2.4145]
[1723383898483,2.65826,2633.3,2633.0,0.0654569]
[1723383898920,5.31692,2633.1,2633.0,0.0654569]
[1723383899131,2.65857,2633.0,2632.3,7.73292]
[1723383899302,2.65857,2633.0,2632.3,5.07371]
[1723383899799,2.65857,2633.0,2632.3,2.4145]
[1723383900006,2.65878,2632.8,2632.3,2.4145]
[1723383900407,2.65857,2633.0,2632.3,2.4145]
[1723383900623,2.65857,2633.0,2632.3,2.921881]
[1723383900830,5.31722,2633.0,2632.3,2.921881]
[1723383901025,2.65857,2633.0,2632.3,5.581091]
[1723383901207,0.72488976,2633.1,2632.3,5.581091]
[1723383901208,0.72488976,2633.1,2632.4,2.65917]
[1723383901389,1.93210055,2633.0,2632.5,2.65906]
[1723383901596,5.31686,2633.2,2632.5,2.65906]
[1723383901937,2.65856,2633.0,2632.4,0.5581051]
[1723383902091,2.65856,2633.0,2632.4,2.65916]
[1723383902428,2.65856,2633.0,2632.3,5.07369]
[1723383902629,2.65843,2633.2,2632.4,2.4145]
[1723383903034,2.65843,2633.2,2632.5,2.65901]
[1723383903192,0.831665,2633.2,2632.4,2.4145]
[1723383903395,2.65861,2633.0,2632.4,2.4145]
[1723383903748,5.90499735,2633.1,2632.4,2.4145]
[1723383903749,2.65851,2633.1,2632.4,2.4145]
[1723383903903,1.93212766,2633.0,2632.5,2.65906]
[1723383904105,2.65851,2633.1,2632.4,5.07366]
[1723383904300,2.65851,2633.1,2632.5,2.65905]
[1723383904808,2.65851,2633.1,2632.6,0.0659982]
[1723383905431,7.3,2633.2,2632.6,0.0659982]
[1723383905639,1.93199834,2633.1,2632.5,5.31798]
[1723383905796,1.93199834,2633.1,2632.7,0.06596287]
[1723383905995,2.65861,2633.0,2632.4,2.4145]
[1723383906210,2.65861,2633.0,2632.5,0.06608777]
[1723383906398,2.65871,2632.9,2632.5,0.06608777]
[1723383906805,2.65886,2632.7,2632.5,0.06608777]
[1723383907103,0.51900575,2633.0,2632.5,2.65904]
[1723383907269,3.0,2633.1,2632.3,2.65924]
[1723383907452,1.31438584,2633.0,2632.4,2.65916]
[1723383907656,3.0,2633.0,2632.4,2.65916]
[1723383907855,3.0,2633.0,2632.5,0.06612168]
[1723383908290,5.65857,2633.0,2632.5,0.06612168]
[1723383908494,5.65857,2633.0,2632.3,2.65926]
[1723383908694,5.65857,2633.0,2632.6,0.0660694]
[1723383908853,5.65857,2633.0,2632.3,2.65926]
[1723383909189,5.65857,2633.0,2632.7,0.06599677]
[1723383909388,2.65871,2632.9,2632.2,2.65935]
[1723383909589,2.65891,2632.7,2632.1,2.2962]
[1723383909773,2.65891,2632.7,2632.3,0.0662466]
[1723383910095,9.95839,2633.2,2632.5,2.2962]
[1723383910096,7.3,2633.2,2632.5,2.2962]
[1723383910255,9.95841,2633.2,2632.5,2.53243841]
[1723383910459,9.95841,2633.2,2632.6,0.06609652]
[1723383910664,2.65857,2633.0,2632.6,0.06609652]
[1723383911061,2.65873,2632.9,2632.6,0.06609652]
[1723383911265,2.65873,2632.9,2631.7,10.77109593]
[1723383911266,2.65873,2632.9,2632.3,2.2962]
[1723383911502,2.65857,2633.0,2632.3,2.2962]
[1723383911503,2.65876,2632.8,2632.3,2.2962]
[1723383911713,2.65876,2632.8,2632.4,0.06614684]
[1723383911900,5.31762,2632.8,2632.4,0.06614684]
[1723383912104,2.65876,2632.8,2632.3,2.2962]
[1723383912306,2.65876,2632.8,2632.3,2.791762]
[1723383912612,9.95836,2633.2,2632.5,2.65902]
[1723383912909,12.61678,2633.2,2632.5,2.65902]
[1723383913116,2.65858,2633.0,2632.6,0.06611345]
[1723383913311,9.95836,2633.2,2632.4,2.73512034]
[1723383913312,2.65846,2633.1,2632.4,2.73512034]
[1723383913472,2.65846,2633.1,2632.5,0.81860723]
[1723383914520,2.65857,2633.0,2632.5,0.81860723]
[1723383914719,2.65857,2633.0,2632.3,8.110172]
[1723383914720,2.65857,2633.0,2632.3,7.61461]
[1723383914945,2.65857,2633.0,2632.6,0.06606598]
[1723383915221,2.65857,2633.0,2632.4,2.65916]
[1723383915423,2.65857,2633.0,2632.7,0.06600353]
[1723383915605,2.65846,2633.1,2632.7,0.06600353]
[1723383915779,2.65846,2633.1,2632.4,2.73512679]
[1723383916179,2.65846,2633.1,2632.5,0.06612844]
[1723383916827,2.65856,2633.0,2632.5,0.06612844]
[1723383917178,12.61679,2633.2,2632.4,2.65909]
[1723383917406,2.65847,2633.1,2632.5,0.82756966]
[1723383918737,2.65846,2633.1,2632.5,0.82756966]
[1723383919708,12.61677,2633.2,2632.5,3.48661966]
[1723383919900,9.95836,2633.2,2632.5,3.48661966]
[1723383920432,12.61679,2633.2,2632.5,3.48661966]
[1723383921015,2.65852,2633.1,2632.5,0.82756966]
[1723383926065,7.3,2633.2,2632.6,0.69054969]
[1723383926264,7.3,2633.2,2632.8,2.4183]
[1723383926565,25.42823,2633.4,2632.8,2.4183]
[1723383926860,25.42823,2633.4,2632.9,0.06372892]
[1723383926861,3.0,2633.3,2632.9,0.06372892]
[1723383927023,3.0,2633.3,2632.8,2.4183]
[1723383927224,3.0,2633.3,2633.0,0.06362241]
[1723383927544,3.0,2633.3,2632.8,2.4183]
[1723383927748,3.0,2633.3,2632.8,5.07706]
[1723383927962,3.0,2633.3,2632.9,0.06368484]
[1723383928175,3.0,2633.3,2632.8,2.4183]
[1723383928461,1.31424793,2633.2,2632.8,2.4183]
[1723383928672,5.65833,2633.3,2632.8,2.4183]
[1723383928821,3.97269172,2633.2,2632.6,0.07596204]
[1723383929020,3.97273172,2633.1,2632.7,0.06380973]
[1723383929220,2.65847,2633.1,2632.7,0.06380973]
[1723383929422,2.65858,2633.0,2632.7,0.06380973]
[1723383929652,2.65847,2633.1,2632.7,0.06380973]
[1723383930052,2.65847,2633.1,2632.6,0.07596204]
[1723383930235,2.65847,2633.1,2632.8,0.06373372]
[1723383930432,2.65836,2633.2,2632.6,0.59129324]
[1723383930636,1.31428571,2633.1,2632.9,0.06368823]
[1723383930870,2.65836,2633.2,2632.6,0.07596204]
[1723383931028,1.31429085,2633.1,2632.6,3.30176936]
[1723383931225,5.65832,2633.3,2632.6,3.30176936]
[1723383931459,1.31428776,2633.2,2632.7,0.06381312]
[1723383931657,5.65832,2633.3,2632.7,3.56692937]
[1723383931658,1.31428776,2633.1,2632.7,3.56692937]
[1723383931964,5.31661,2633.3,2632.7,0.90809937]
[1723383932124,4.31428342,2633.2,2632.7,0.90809937]
[1723383932326,1.31428342,2633.1,2632.8,2.78260214]
[1723383932523,9.95813,2633.5,2632.8,2.78260214]
[1723383932524,5.65816,2633.4,2632.8,2.8463596]
[1723383932734,3.97250399,2633.3,2632.8,2.48205746]
[1723383932949,4.31424399,2633.2,2632.8,2.48205746]
[1723383933150,5.65816,2633.4,2632.8,2.4183]
[1723383933360,1.31421678,2633.3,2632.9,0.06369501]
[1723383933569,5.65816,2633.4,2632.9,0.06369501]
[1723383933730,1.31421252,2633.3,2632.8,2.4183]
[1723383934065,2.65831,2633.3,2632.9,0.06369501]
[1723383934221,2.65831,2633.3,2632.8,2.4183]
[1723383934222,3.0,2633.2,2632.8,2.4183]
[1723383934653,3.0,2633.2,2632.9,0.06369501]
[1723383934836,3.0,2633.2,2632.8,2.4183]
[1723383936668,3.0,2633.2,2632.9,0.06361028]
[1723383936967,3.0,2633.2,2632.8,2.4183]
[1723383937328,3.0,2633.2,2632.9,0.06361028]
[1723383937542,2.65791,2633.7,2633.0,2.4183]
[1723383937835,2.65791,2633.7,2633.1,2.7344079]
[1723383937836,1.31412963,2633.6,2633.1,2.7344079]
[1723383938029,2.65791,2633.7,2633.1,3.24967869]
[1723383938231,1.31402786,2633.6,2633.1,3.24967869]
[1723383938440,2.65791,2633.7,2633.1,3.24967869]
[1723383939374,19.77,2633.8,2633.1,0.51527079]
[1723383939669,7.3,2633.9,2632.7,1.99186752]
[1723383939670,2.65832,2633.3,2632.7,2.4183]
[1723383939840,2.65832,2633.3,2632.7,3.39111075]
[1723383940333,2.65839,2633.2,2632.7,3.39111075]
[1723383940533,2.65851,2633.1,2632.7,2.4183]
[1723383940730,2.65851,2633.1,2632.3,4.65107752]
[1723383940731,2.65833,2633.3,2632.5,2.4183]
[1723383940930,2.65836,2633.2,2632.6,2.65893]
[1723383942183,2.65852,2633.1,2632.6,0.773637]
[1723383942465,2.65852,2633.1,2632.5,2.4183]
[1723383942841,2.65823,2633.4,2632.6,2.65891]
[1723383943028,1.31428898,2633.3,2632.8,5.07701]
[1723383943229,7.3,2633.5,2632.8,2.4183]
[1723383943469,12.61621,2633.5,2632.8,5.07705]
[1723383943775,12.61621,2633.5,2632.9,0.06356621]
[1723383944230,2.65816,2633.4,2632.9,0.06356621]
[1723383945680,2.65826,2633.3,2632.9,0.06356621]
[1723383945967,2.65816,2633.4,2632.9,0.06356621]
[1723383946129,2.65816,2633.4,2632.9,0.67490861]
[1723383947075,7.3,2633.5,2632.9,0.67490861]
[1723383947366,7.3,2633.5,2632.9,0.6113424]
[1723383947529,7.3,2633.5,2632.9,3.2699924]
[1723383947737,7.3,2633.5,2633.0,1.01156663]
[1723383949047,9.95806,2633.5,2633.0,1.01156663]
[1723383949266,9.95806,2633.5,2633.0,0.06336139]
[1723383949780,7.3,2633.5,2633.0,2.72190139]
[1723383950001,2.65782,2633.8,2633.4,1.135]
[1723383950002,7.3,2633.8,2633.4,1.135]
[1723383950170,19.77,2634.1,2633.5,3.03737]
[1723383950543,19.77,2634.1,2633.6,0.06298688]
[1723383950736,22.42745,2634.1,2633.5,3.03737]
[1723383951082,7.3,2634.2,2633.8,2.4594]
[1723383951284,2.4197,2634.9,2633.9,2.73349352]
[1723383951285,9.95685,2634.7,2633.9,2.73349352]
[1723383951436,1.31365925,2634.6,2633.9,5.39109352]
[1723383951636,2.65697,2634.6,2633.9,5.39109352]
[1723383951838,2.65697,2634.6,2634.0,0.0627373]
[1723383952158,11.09185,2634.7,2634.0,0.13865981]
[1723383952360,2.65709,2634.5,2634.0,0.0627373]
[1723383953076,2.65745,2634.1,2634.0,0.0627373]
[1723383953278,2.6573,2634.3,2633.4,3.5944]
[1723383953447,2.6573,2634.3,2633.5,0.35944]
[1723383953789,2.6573,2634.3,2633.5,3.01744]
[1723383954087,2.65745,2634.1,2633.6,0.06268533]
[1723383954237,2.6573,2634.3,2633.6,0.06268533]
[1723383954438,2.6574,2634.2,2633.5,2.65799]
[1723383954675,2.6574,2634.2,2633.6,0.06268533]
[1723383955607,2.65745,2634.1,2633.6,0.06268533]
[1723383956083,5.31462,2634.3,2633.5,2.65803]
[1723383956242,2.6573,2634.3,2633.7,0.06262293]
[1723383956440,5.65717,2634.4,2633.8,2.4594]
[1723383956687,2.657,2634.6,2633.9,0.511725]
[1723383956863,2.657,2634.6,2633.8,5.11706]
[1723383957058,5.31401,2634.6,2634.0,0.06217145]
[1723383957250,2.657,2634.6,2633.9,2.65763]
[1723383957580,2.657,2634.6,2633.9,3.169333]
[1723383957888,2.657,2634.6,2633.9,3.24521605]
[1723383958043,2.657,2634.6,2633.9,3.169293]
[1723383958988,7.3,2634.7,2633.8,2.4594]
[1723383958989,2.6574,2634.2,2633.8,2.4594]
[1723383959390,2.6574,2634.2,2633.9,0.06223384]
[1723383959684,7.3,2634.7,2633.9,2.71988384]
[1723383959886,3.0,2634.6,2634.0,3.17540838]
[1723383960249,7.3,2634.7,2634.2,5.11674]
[1723383960575,7.3,2634.7,2634.3,2.79505526]
[1723383960971,7.3,2634.7,2634.3,5.45224372]
[1723383961184,7.3,2634.7,2634.3,6.24340809]
[1723383961347,7.3,2634.7,2634.3,3.58617809]
[1723383961687,3.0,2635.1,2634.3,3.58617809]
[1723383961900,2.65656,2635.0,2634.3,3.52426829]
[1723383962198,9.7197,2635.3,2634.4,0.59836683]
[1723383962363,2.65635,2635.2,2634.6,5.11632]
[1723383962688,2.65646,2635.1,2634.6,2.4594]
[1723383962890,2.65646,2635.1,2634.7,0.06156554]
[1723383963313,9.95633,2635.3,2634.6,2.53530516]
[1723383963521,9.95631,2635.3,2634.6,6.03702136]
[1723383963679,2.65635,2635.2,2634.8,0.06150319]
[1723383963875,7.3,2635.3,2634.6,6.03702136]
[1723383964102,7.3,2635.3,2634.9,0.06144085]
[1723383964314,7.3,2635.3,2634.6,3.3041762]
[1723383964521,7.3,2635.3,2634.7,2.65676]
[1723383964822,7.3,2635.3,2634.8,2.65674]
[1723383965420,7.3,2635.3,2634.7,0.07589938]
[1723383965598,9.95629,2635.3,2634.6,5.11634]
[1723383965781,9.95629,2635.3,2634.8,0.06135425]
[1723383966122,2.65619,2635.4,2634.7,0.777334]
[1723383966342,21.9097,2635.6,2635.0,2.3089]
[1723383966343,22.14599,2635.6,2635.0,2.3089]
[1723383966486,2.65577,2635.8,2635.1,3.15907519]
[1723383966816,2.65577,2635.8,2635.1,2.71756722]
[1723383967239,7.3,2635.9,2635.2,2.73217989]
[1723383967526,7.3,2635.9,2635.3,0.07588354]
[1723383967709,7.3,2635.9,2635.3,0.41014245]
[1723383968087,7.3,2635.9,2635.4,4.96498]
[1723383968332,12.3185297,2636.1,2635.5,2.65601]
[1723383968333,0.1285297,2636.1,2635.5,2.65601]
[1723383968624,2.65564,2635.9,2635.5,0.06091792]
[1723383968831,2.65559,2636.0,2635.5,0.06091792]
[1723383969121,2.7840597,2636.1,2635.5,0.06091792]
[1723383969332,0.1285297,2636.1,2635.5,0.56351871]
[1723383969684,2.65559,2636.0,2635.5,0.56351871]
[1723383969889,2.7840197,2636.1,2635.5,0.06091792]
[1723383970084,2.7840197,2636.1,2635.4,2.3089]
[1723383970085,2.7840197,2636.1,2635.4,2.38477975]
[1723383970621,2.7840197,2636.1,2635.4,2.3089]
[1723383971001,0.1285297,2636.1,2635.5,2.71642322]
[1723383971194,0.1285297,2636.1,2635.6,0.50253232]
[1723383971393,0.1285297,2636.1,2635.6,0.57840722]
[1723383971593,0.1285297,2636.1,2635.7,0.0602686]
[1723383971908,2.65573,2635.9,2635.4,2.3089]
[1723383972100,2.65573,2635.9,2635.8,0.0602063]
[1723383972408,2.65573,2635.9,2635.4,2.3089]
[1723383972817,5.31143,2635.9,2635.5,0.06039322]
[1723383973036,2.65589,2635.7,2635.5,0.06039322]
[1723383973227,5.31139,2635.9,2635.5,0.06039322]
[1723383973740,2.65588,2635.7,2634.8,2.3089]
[1723383973907,2.65576,2635.8,2634.9,2.3089]
[1723383974090,2.65583,2635.8,2635.0,3.1531]
[1723383974289,2.65584,2635.7,2635.0,3.1531]
[1723383974622,2.65583,2635.8,2635.1,2.65634]
[1723383974933,2.65582,2635.8,2635.2,2.3089]
[1723383975229,2.65586,2635.7,2635.2,2.3089]
[1723383975729,0.60183017,2635.9,2635.2,2.3089]
[1723383975927,0.60183017,2635.9,2635.2,5.5429114]
[1723383975928,3.0,2635.9,2635.2,5.5429114]
[1723383976130,3.0,2635.9,2635.3,2.73210557]
[1723383976889,2.6556,2636.0,2635.4,2.3089]
[1723383977090,7.4285297,2636.1,2635.4,2.3089]
[1723383977287,7.4285297,2636.1,2635.5,0.5799773]
[1723383977486,7.4285297,2636.1,2635.5,0.50409756]
[1723383977924,10.0840097,2636.1,2635.5,0.50409756]
[1723383978439,10.0840097,2636.1,2635.6,0.07587462]
[1723383978440,7.4285297,2636.1,2635.6,0.07587462]
[1723383978632,7.4285297,2636.1,2635.6,0.63036284]
[1723383979194,0.1285297,2636.1,2635.6,0.63036284]
[1723383979926,0.1285297,2636.1,2635.7,0.06009602]
[1723383980694,2.7839697,2636.1,2635.7,0.06009602]
[1723383980896,0.1285297,2636.1,2635.7,0.06009602]
[1723383981128,0.1285297,2636.1,2635.7,0.44515066]
[1723383985208,0.1285297,2636.1,2635.7,0.44435066]
[1723383986041,2.7840097,2636.1,2635.7,0.44435066]
[1723383986196,2.7840097,2636.1,2635.7,0.05929602]
[1723383986602,2.65579,2635.8,2635.4,2.3089]
[1723383987033,2.65568,2635.9,2635.4,2.3089]
[1723383987737,2.65579,2635.8,2635.4,2.3089]
[1723383990233,2.65564,2635.9,2635.4,2.3089]
[1723383990411,10.0840097,2636.1,2635.4,5.461543]
[1723383991364,2.65554,2636.0,2635.4,5.461513]
[1723383991643,10.0840097,2636.1,2635.5,0.5461513]
[1723383992341,7.4285297,2636.1,2635.5,3.2021213]
[1723383992908,7.4285297,2636.1,2635.6,0.06001665]
[1723383993528,7.4285297,2636.1,2635.6,2.71590665]
[1723383993847,7.4285297,2636.1,2635.8,2.2806]
[1723383994156,7.4285297,2636.1,2635.9,0.05976547]
[1723383995524,7.4285297,2636.1,2635.9,2.71538547]
[1723383995825,0.1285297,2636.1,2636.0,8.80052877]
[1723383996011,0.1285297,2636.1,2636.0,3.43220242]
[1723383996323,0.1285297,2636.1,2636.0,7.65127186]
[1723383996539,0.1285297,2636.1,2636.0,4.99574186]
[1723383997546,0.1285297,2636.1,2636.0,2.34021186]
[1723383997963,0.1285297,2636.1,2636.0,0.05961186]
[1723383998120,0.1285297,2636.1,2635.9,2.2806]
[1723383998317,0.1285297,2636.1,2636.0,0.05961186]
[1723383998518,0.1285297,2636.1,2636.0,2.71514186]
[1723383999729,0.1285297,2636.1,2636.0,5.37067186]
[1723384000069,0.1285297,2636.1,2636.0,10.36827186]
[1723384000214,0.1285297,2636.1,2636.0,13.02380186]
[1723384000555,0.1285297,2636.1,2636.0,14.99150437]
[1723384000769,0.1285297,2636.1,2636.0,12.27450437]
[1723384000968,0.1285297,2636.1,2636.0,14.99150437]
[1723384001169,0.1285297,2636.1,2636.0,12.27450437]
[1723384002672,0.1285297,2636.1,2636.0,14.93003437]
[1723384002883,0.1285297,2636.1,2636.0,12.27450437]
[1723384003058,0.1285297,2636.1,2636.0,14.93003437]
[1723384003380,2.717,2637.9,2636.0,14.93003437]
[1723384003381,2.65363,2637.9,2637.1,2.2806]
[1723384003578,2.3115,2638.1,2637.1,2.2806]
[1723384003579,2.92549,2637.8,2637.1,2.2806]
[1723384003733,2.654,2637.6,2637.2,0.05836762]
[1723384003935,2.3115,2637.6,2637.2,0.05836762]
[1723384004145,2.6541,2637.5,2636.8,4.93526]
[1723384004360,2.3115,2637.6,2637.3,0.05820061]
[1723384004565,2.65403,2637.5,2636.8,2.2806]
[1723384004883,2.808036,2637.6,2636.5,2.2806]
[1723384004884,2.65441,2637.2,2636.5,2.2806]
[1723384005169,2.65416,2637.4,2636.7,2.65478]
[1723384005371,3.20409,2637.5,2636.8,2.65469]
[1723384005796,2.3115,2637.6,2636.9,2.65462]
[1723384006086,2.3115,2637.6,2636.8,2.65467]
[1723384006684,2.3115,2637.6,2637.1,2.65443]
[1723384006853,2.65369,2637.9,2637.1,2.65443]
[1723384006854,2.65374,2637.8,2637.1,2.65437]
[1723384007053,0.771433,2637.8,2637.1,2.65435]
[1723384007255,0.771433,2637.8,2637.2,2.65427]
[1723384007464,0.771433,2637.8,2637.3,2.65421]
[1723384007935,2.4069,2637.9,2637.3,2.65421]
[1723384008656,2.4069,2637.9,2637.1,2.65435]
[1723384008657,2.65375,2637.8,2637.1,2.65435]
[1723384008965,2.65378,2637.8,2637.1,2.65435]
[1723384009141,2.65378,2637.8,2637.1,5.30873]
[1723384009477,3.425207,2637.8,2637.1,5.30872]
[1723384009676,0.771427,2637.8,2637.2,2.65431]
[1723384009876,0.771427,2637.8,2637.2,2.71252553]
[1723384010111,0.771427,2637.8,2637.2,0.05821553]
[1723384010239,5.30756,2637.8,2637.2,0.05821553]
[1723384010436,2.65398,2637.6,2637.0,2.3935]
[1723384010676,2.65376,2637.8,2637.3,0.0581533]
[1723384010677,2.65384,2637.7,2637.3,0.0581533]
[1723384010937,2.65384,2637.7,2637.0,5.04794]
[1723384011155,2.65384,2637.7,2637.4,0.05809107]
[1723384011478,2.65384,2637.7,2637.0,5.04794]
[1723384011666,15.01424,2637.9,2637.1,2.65438]
[1723384011838,15.01424,2637.9,2637.1,2.71265777]
[1723384011839,3.20374,2637.8,2637.1,2.71265777]
[1723384012040,12.36053,2637.9,2637.1,0.13411316]
[1723384012240,12.36053,2637.9,2637.3,2.6542]
[1723384012460,9.7069,2637.9,2637.3,2.65414]
[1723384013258,9.7069,2637.9,2637.0,2.3935]
[1723384013467,9.7069,2637.9,2637.3,2.65414]
[1723384013874,9.7069,2637.9,2637.2,2.65432]
[1723384013875,2.65388,2637.7,2637.0,5.04796]
[1723384014261,2.65388,2637.7,2637.1,0.05827777]
[1723384014650,2.4069,2637.4,2637.1,0.05827777]
[1723384014956,2.4069,2637.4,2636.7,2.65477]
[1723384014957,5.06109,2637.4,2636.7,2.65477]
[1723384015160,5.06109,2637.4,2637.2,0.05588802]
[1723384015161,0.55,2637.3,2637.2,0.05588802]
[1723384015389,0.55,2637.3,2636.7,2.65477]
[1723384015563,5.06109,2637.4,2636.7,3.185733]
[1723384015776,7.71531,2637.4,2636.8,0.0542884]
[1723384015981,2.65424,2637.3,2636.8,0.0542884]
[1723384016562,5.06103,2637.4,2636.8,0.0542884]
[1723384017017,5.06103,2637.4,2636.5,5.30994]
[1723384017299,5.06103,2637.4,2636.6,0.05451429]
[1723384017626,2.65427,2637.3,2636.6,0.56481072]
[1723384017769,2.65427,2637.3,2636.6,3.21969072]
[1723384018406,2.65428,2637.3,2636.6,3.21969072]
[1723384018595,2.65433,2637.2,2636.6,3.21969072]
[1723384018970,2.65423,2637.3,2636.6,3.21969072]
[1723384019274,5.79838158,2637.4,2636.7,2.65483]
[1723384019589,2.65423,2637.3,2636.8,0.05438977]
[1723384019797,2.65449,2637.1,2636.4,5.04855]
[1723384020104,2.65449,2637.1,2636.9,0.05432752]
[1723384020307,2.65449,2637.1,2636.4,2.3935]
[1723384020515,0.320449,2637.1,2636.4,5.04863]
[1723384020667,0.55,2637.3,2636.6,2.65487]
[1723384020990,2.65438,2637.2,2636.7,0.05445203]
[1723384021191,2.65438,2637.2,2636.4,5.04854]
[1723384021380,2.65423,2637.3,2636.8,0.05438977]
[1723384021701,5.06109,2637.4,2636.8,2.65472]
[1723384021906,5.06109,2637.4,2636.9,0.05432752]
[1723384022076,2.65424,2637.3,2636.6,2.65493]
[1723384022267,2.65424,2637.3,2636.7,0.05445203]
[1723384022463,8.951399,2637.4,2636.7,0.05445203]
[1723384022807,6.297199,2637.4,2636.7,0.05445203]
[1723384023007,3.643009,2637.4,2636.8,2.65467]
[1723384023214,5.06109,2637.4,2636.8,0.05438977]
[1723384023417,2.4069,2637.4,2636.8,2.70905977]
[1723384023637,5.06103,2637.4,2636.8,2.70905977]
[1723384024124,2.4069,2637.4,2636.8,2.70905977]
[1723384024325,5.06103,2637.4,2636.8,2.70905977]
[1723384024480,5.06103,2637.4,2636.8,0.05438977]
[1723384024678,5.06103,2637.4,2636.8,2.70911977]
[1723384024984,2.4069,2637.4,2636.8,5.36373977]
[1723384025184,7.3,2637.5,2636.9,2.92987398]
[1723384025382,7.3,2637.5,2637.2,2.65428]
[1723384025717,2.65369,2637.9,2637.3,0.05413939]
[1723384025883,2.65369,2637.9,2637.2,2.65428]
[1723384025884,2.65369,2637.9,2637.2,2.65426]
[1723384026383,2.65369,2637.9,2637.0,5.3089]
[1723384026587,2.6537,2637.9,2637.1,2.65442]
[1723384026816,2.6537,2637.9,2637.1,2.70868386]
[1723384027050,7.3,2638.0,2637.3,2.65421]
[1723384027211,7.3,2638.0,2637.2,0.0758301]
[1723384027212,7.3,2638.0,2637.5,2.65395]
[1723384027584,7.3,2638.0,2637.6,0.05395272]
[1723384027929,12.22173,2638.0,2637.6,0.05395272]
[1723384028126,7.3,2638.0,2637.4,2.56790401]
[1723384028420,7.3,2638.0,2636.9,2.65461]
[1723384028421,2.2682,2637.9,2637.0,2.65447]
[1723384028595,2.65387,2637.7,2637.5,0.05393046]
[1723384028784,4.92185,2637.9,2637.2,2.65427]
[1723384028980,7.3,2638.0,2637.6,0.05378041]
[1723384029180,7.3,2638.0,2637.4,2.65406]
[1723384029421,9.95353,2638.0,2637.5,0.494896]
[1723384029628,9.95353,2638.0,2637.3,2.2949]
[1723384029629,9.95353,2638.0,2637.3,4.94912]
[1723384029922,9.95353,2638.0,2637.4,2.65412]
[1723384029923,7.3,2638.0,2637.4,2.65412]
[1723384030128,7.3,2638.0,2637.4,2.65407]
[1723384030334,7.3,2638.0,2637.5,2.65396]
[1723384030630,7.3,2638.0,2637.4,3.148967]
[1723384031388,7.3,2638.0,2637.4,3.148947]
[1723384031588,9.95352,2638.0,2637.4,3.148947]
[1723384031888,7.3,2638.0,2637.4,2.65405]
[1723384032524,2.65371,2637.9,2637.3,2.2949]
[1723384032732,2.2682,2637.9,2636.7,2.2949]
[1723384032904,2.65398,2637.6,2636.9,2.65453]
[1723384033108,0.320398,2637.6,2636.9,2.65453]
[1723384033409,5.2682,2637.9,2636.4,2.717]
[1723384033410,5.2682,2637.9,2637.2,2.2949]
[1723384033613,5.2682,2637.9,2637.3,2.65421]
[1723384033802,2.2682,2637.9,2637.3,2.65421]